bitfinex/quotes_SOLUSD_20251025
["timestamp","ask_amount","ask_price","bid_price","bid_amount"]
[1761361859140,0.59,193.65,193.55,28.95963689]
[1761361859141,35.84,193.64,193.59,2.56406986]
[1761361859346,22.88,193.61,193.59,3.22406986]
[1761361859546,7.527978,193.66,193.6,11.53647521]
[1761361859747,8.117978,193.66,193.62,2.56406986]
[1761361859949,7.527978,193.66,193.63,2.56406986]
[1761361860151,7.527978,193.66,193.63,8.38829744]
[1761361860356,7.527978,193.66,193.64,0.66]
[1761361861146,35.84,193.67,193.64,0.66]
[1761361862180,38.40406986,193.67,193.62,11.53647521]
[1761361862336,38.40406986,193.67,193.63,0.66]
[1761361862535,38.99406986,193.67,193.63,0.66]
[1761361862842,38.99406986,193.67,193.62,10.87647521]
[1761361863047,38.99406986,193.67,193.62,0.66]
[1761361863859,2.56406986,193.66,193.62,0.66]
[1761361864440,2.56406986,193.66,193.62,5.82472584]
[1761361864762,2.56406986,193.66,193.63,0.66]
[1761361865665,3.15406986,193.65,193.61,10.87647521]
[1761361865967,2.56406986,193.62,193.57,0.66]
[1761361866135,2.56406986,193.6,193.58,5.16582291]
[1761361866338,38.38406986,193.61,193.57,0.66]
[1761361866749,38.38406986,193.61,193.57,5.82603264]
[1761361867141,38.38406986,193.61,193.58,0.66]
[1761361867757,35.82,193.61,193.58,5.82573247]
[1761361868261,38.97406986,193.61,193.57,10.87647521]
[1761361868465,2.56406986,193.59,193.56,0.66]
[1761361868967,2.56406986,193.58,193.56,0.66]
[1761361869137,2.56406986,193.58,193.55,10.87647521]
[1761361869340,2.56406986,193.58,193.55,11.53647521]
[1761361869961,2.56406986,193.58,193.55,16.70306295]
[1761361871670,2.56406986,193.56,193.52,0.66]
[1761361871985,2.56406986,193.55,193.52,0.66]
[1761361873478,2.56406986,193.56,193.52,0.66]
[1761361874861,2.56406986,193.55,193.52,0.66]
[1761361875668,2.56406986,193.56,193.52,0.66]
[1761361880182,2.56406986,193.56,193.52,5.82729594]
[1761361880382,38.38406986,193.56,193.52,5.82729594]
[1761361880586,38.38406986,193.56,193.53,0.72]
[1761361883088,2.56406986,193.56,193.53,0.72]
[1761361883589,38.38406986,193.56,193.53,0.72]
[1761361885483,38.38406986,193.56,193.53,5.8871324]
[1761361885484,35.82,193.56,193.53,5.8871324]
[1761361885884,35.82,193.56,193.54,0.72]
[1761361887590,22.88,193.57,193.54,0.72]
[1761361887974,22.88,193.57,193.54,5.88688713]
[1761361888473,22.88,193.57,193.55,0.72]
[1761361890874,22.88,193.57,193.54,5.16688713]
[1761361891071,24.52116855,193.57,193.54,0.72]
[1761361892590,60.34116855,193.57,193.54,0.72]
[1761361892994,24.52116855,193.57,193.54,0.72]
[1761361893199,60.34116855,193.57,193.54,0.72]
[1761361893577,24.52116855,193.57,193.54,0.72]
[1761361893878,60.34116855,193.57,193.54,0.72]
[1761361895995,58.7,193.57,193.54,0.72]
[1761361896394,58.7,193.57,193.54,5.88684836]
[1761361896574,58.7,193.57,193.54,7.52801691]
[1761361896897,58.7,193.57,193.55,0.72]
[1761361900602,22.88,193.57,193.55,0.72]
[1761361900894,102.2,193.58,193.55,5.88639911]
[1761361901272,102.2,193.58,193.56,0.72]
[1761361901688,102.2,193.58,193.56,2.36116855]
[1761361902075,102.2,193.58,193.57,0.72]
[1761361902277,58.7,193.61,193.57,2.36116855]
[1761361902795,58.7,193.61,193.58,0.72]
[1761361903589,22.88,193.61,193.58,0.72]
[1761361906898,22.88,193.61,193.58,5.88568489]
[1761361907503,22.88,193.61,193.59,0.72]
[1761361914014,1.64116855,193.6,193.57,5.16603607]
[1761361914200,1.64116855,193.6,193.57,5.82603607]
[1761361914603,2.23116855,193.59,193.55,5.16635688]
[1761361914903,1.64116855,193.57,193.54,16.70331816]
[1761361915496,2.23116855,193.58,193.54,16.70331816]
[1761361915897,1.64116855,193.58,193.55,0.66]
[1761361919416,43.19668526,193.6,193.55,5.82659273]
[1761361919812,41.55551671,193.6,193.56,0.66]
[1761361920009,43.19668526,193.6,193.56,0.66]
[1761361920805,7.39668526,193.6,193.56,0.66]
[1761361921007,37.46116855,193.59,193.56,0.66]
[1761361921306,1.64116855,193.59,193.56,0.66]
[1761361921706,37.46116855,193.59,193.56,0.66]
[1761361921906,1.64116855,193.59,193.56,0.66]
[1761361922099,37.46116855,193.59,193.56,0.66]
[1761361923104,35.82,193.59,193.56,0.66]
[1761361925921,6.80652532,193.6,193.56,0.66]
[1761361925922,12.51764376,193.67,193.57,10.87647521]
[1761361926110,48.46592983,193.63,193.58,1.64116855]
[1761361926307,48.46592983,193.63,193.58,2.30116855]
[1761361926511,48.46592983,193.63,193.59,0.66]
[1761361926717,71.34592983,193.63,193.59,0.66]
[1761361926923,71.93592983,193.63,193.59,0.66]
[1761361927217,77.10062502,193.63,193.59,0.66]
[1761361928115,69.70476128,193.63,193.59,7.46668763]
[1761361928728,69.70476128,193.63,193.6,0.66]
[1761361928899,33.88476128,193.63,193.6,0.66]
[1761361929822,11.00476128,193.63,193.6,7.46633689]
[1761361930002,102.2,193.64,193.61,0.66]
[1761361930413,102.2,193.64,193.61,2.30116855]
[1761361930613,102.2,193.64,193.62,0.66]
[1761361932125,102.2,193.64,193.61,0.66]
[1761361932635,103.84116855,193.64,193.61,0.66]
[1761361934137,102.2,193.64,193.61,0.66]
[1761361944540,102.2,193.64,193.61,5.82498166]
[1761361944716,102.2,193.64,193.62,0.68]
[1761361947236,102.2,193.64,193.61,5.16498166]
[1761361947437,102.2,193.64,193.61,5.84498166]
[1761361948363,102.2,193.64,193.62,0.68]
[1761361949153,102.2,193.64,193.62,5.84469108]
[1761361949461,35.8,193.68,193.63,2.56254109]
[1761361949645,58.68,193.68,193.63,3.24254109]
[1761361949850,22.88,193.67,193.64,0.68]
[1761361950037,35.8,193.67,193.64,0.68]
[1761361951153,35.8,193.67,193.64,5.84407616]
[1761361951537,35.8,193.67,193.64,5.16407616]
[1761361951851,35.8,193.67,193.65,0.68]
[1761361952354,22.88,193.68,193.65,0.68]
[1761361955062,25.44254109,193.68,193.65,0.68]
[1761361956650,25.44254109,193.68,193.64,5.16407616]
[1761361956953,26.03254109,193.68,193.64,5.84407616]
[1761361960666,22.88,193.68,193.65,0.68]
[1761361960869,25.44254109,193.68,193.65,0.68]
[1761361961668,26.03254109,193.68,193.64,5.16415299]
[1761361961872,23.47,193.68,193.64,5.84415299]
[1761361962165,26.03254109,193.68,193.64,5.84415299]
[1761361963443,3.15254109,193.67,193.63,16.04096418]
[1761361964161,28.04316068,193.68,193.64,0.68]
[1761361964368,2.56254109,193.67,193.64,0.68]
[1761361965066,2.56254109,193.67,193.64,5.84413682]
[1761361967449,2.56254109,193.67,193.64,5.16413682]
[1761361967656,3.15254109,193.67,193.64,5.16413682]
[1761361968157,3.15254109,193.67,193.64,5.84413682]
[1761361968757,3.15254109,193.67,193.64,5.16413682]
[1761361969570,2.56254109,193.67,193.64,5.84413682]
[1761361975270,30.60570177,193.68,193.65,0.68]
[1761361975574,25.44254109,193.68,193.65,0.68]
[1761361978370,22.88,193.68,193.65,0.68]
[1761361980169,25.44254109,193.68,193.65,0.68]
[1761361982482,38.88155739,193.68,193.65,0.68]
[1761361982658,25.44254109,193.68,193.65,0.68]
[1761361982983,36.3190163,193.68,193.65,0.68]
[1761361985086,36.9090163,193.68,193.64,5.16413682]
[1761361985271,42.07222016,193.68,193.64,5.85413682]
[1761361985582,2.56254109,193.67,193.64,5.85413682]
[1761361986787,18.07323054,193.67,193.64,5.85413682]
[1761361987500,2.56254109,193.65,193.6,16.20068945]
[1761361987659,2.56254109,193.63,193.6,0.69]
[1761361988574,10.87647521,193.62,193.6,0.69]
[1761361990579,10.87647521,193.62,193.6,5.85515576]
[1761361990782,25.44254109,193.64,193.6,5.85515576]
[1761361991088,13.4390163,193.63,193.61,0.69]
[1761361998488,13.4390163,193.63,193.61,5.85501683]
[1761361998995,13.4390163,193.63,193.62,0.69]
[1761362004191,13.4390163,193.63,193.61,5.85501683]
[1761362004787,13.4390163,193.63,193.61,5.16501683]
[1761362005184,13.4390163,193.63,193.61,5.85501683]
[1761362008191,16.00155739,193.63,193.6,5.1652531]
[1761362008490,0.59,193.62,193.6,5.1652531]
[1761362008789,2.56254109,193.61,193.56,5.16615889]
[1761362009102,2.56254109,193.6,193.57,0.69]
[1761362009881,13.4390163,193.59,193.57,5.85602515]
[1761362010284,13.4390163,193.59,193.58,0.69]
[1761362011778,37.42088823,193.62,193.58,5.85582291]
[1761362011978,12.51736344,193.61,193.58,5.85582291]
[1761362012194,12.51736344,193.61,193.59,0.69]
[1761362012915,37.42088823,193.62,193.59,0.69]
[1761362013085,5.16582291,193.61,193.59,0.69]
[1761362016001,6.80671114,193.61,193.59,0.69]
[1761362021405,5.16582291,193.61,193.59,0.69]
[1761362021606,6.80671114,193.61,193.59,0.69]
[1761362024413,5.16582291,193.61,193.59,0.69]
[1761362024601,6.80671114,193.61,193.59,0.69]
[1761362027921,5.16582291,193.61,193.59,0.69]
[1761362031216,5.16582291,193.61,193.59,5.85553146]
[1761362031400,35.78,193.62,193.59,5.85553146]
[1761362031599,35.78,193.62,193.6,0.67]
[1761362033819,5.16291821,193.69,193.61,12.51736344]
[1761362034019,6.80380644,193.69,193.63,1.64088823]
[1761362034226,5.16553146,193.68,193.64,0.67]
[1761362034426,0.59,193.68,193.64,0.67]
[1761362034626,22.88,193.67,193.64,0.67]
[1761362037402,22.88,193.67,193.64,5.83420066]
[1761362037703,22.88,193.67,193.65,0.67]
[1761362040532,37.42088823,193.68,193.65,0.67]
[1761362045631,35.78,193.68,193.65,5.83394784]
[1761362045836,125.08,193.7,193.65,7.47483607]
[1761362046038,160.86,193.7,193.66,0.71]
[1761362046335,162.50088823,193.7,193.66,0.71]
[1761362046534,139.62088823,193.7,193.66,0.71]
[1761362046940,140.21088823,193.7,193.66,0.71]
[1761362047235,139.62088823,193.7,193.66,0.71]
[1761362047924,139.62088823,193.7,193.66,5.87347835]
[1761362048238,137.98,193.7,193.66,5.87347835]
[1761362048442,102.2,193.7,193.67,0.71]
[1761362049139,102.2,193.7,193.67,5.87332856]
[1761362050123,102.2,193.7,193.68,0.71]
[1761362054157,68.81914828,193.72,193.68,5.8730153]
[1761362054322,68.81914828,193.72,193.69,0.71]
[1761362056442,33.05914828,193.72,193.69,0.71]
[1761362057049,10.17914828,193.72,193.69,0.71]
[1761362057748,10.17914828,193.72,193.69,5.87281183]
[1761362058143,10.17914828,193.72,193.7,0.71]
[1761362061558,11.82003651,193.72,193.69,0.67]
[1761362065335,10.17914828,193.72,193.69,0.67]
[1761362065755,10.17914828,193.72,193.66,0.67]
[1761362065756,2.23088823,193.71,193.66,0.67]
[1761362065958,2.23088823,193.71,193.66,11.54647521]
[1761362066137,2.23088823,193.7,193.66,0.67]
[1761362066337,2.23088823,193.7,193.65,5.16388795]
[1761362066637,1.64088823,193.7,193.67,0.67]
[1761362067240,43.15329234,193.71,193.67,0.67]
[1761362068175,37.40088823,193.71,193.67,5.83337925]
[1761362069460,37.40088823,193.71,193.68,0.67]
[1761362069662,1.64088823,193.69,193.65,5.16392257]
[1761362069863,1.64088823,193.69,193.66,0.67]
[1761362070565,2.23088823,193.69,193.65,0.67]
[1761362071659,1.64088823,193.69,193.66,5.16368893]
[1761362072162,1.64088823,193.69,193.66,5.83368893]
[1761362072663,41.51239628,193.71,193.66,5.83368893]
[1761362072880,2.56161212,193.69,193.66,5.83368893]
[1761362074378,2.56161212,193.69,193.67,0.67]
[1761362074964,2.56161212,193.69,193.65,5.83395558]
[1761362075179,2.56161212,193.69,193.66,0.67]
[1761362075376,2.56161212,193.68,193.66,0.67]
[1761362077470,2.56161212,193.68,193.65,5.16395558]
[1761362077648,3.15161212,193.68,193.65,0.67]
[1761362077853,2.56161212,193.67,193.64,5.16416635]
[1761362078049,2.56161212,193.67,193.64,5.83416635]
[1761362078355,2.56161212,193.67,193.65,0.67]
[1761362079971,2.56161212,193.68,193.65,0.67]
[1761362082081,8.31455598,193.69,193.65,0.67]
[1761362082978,3.15161212,193.69,193.65,5.83394152]
[1761362086383,3.15161212,193.69,193.66,0.67]
[1761362086586,102.2,193.7,193.66,0.67]
[1761362087777,102.2,193.7,193.66,5.83359579]
[1761362088389,102.2,193.7,193.67,0.67]
[1761362089188,104.76161212,193.7,193.67,0.67]
[1761362093170,102.2,193.7,193.67,5.83335491]
[1761362093681,102.2,193.7,193.68,0.7]
[1761362094398,102.2,193.7,193.66,5.16362951]
[1761362094576,102.2,193.7,193.67,0.7]
[1761362100625,10.80647425,193.74,193.7,10.87647521]
[1761362100825,10.80647425,193.74,193.72,10.87647521]
[1761362101123,35.74,193.78,193.73,0.72]
[1761362101418,2.56161212,193.76,193.71,26.37995057]
[1761362101619,3.15161212,193.77,193.72,0.72]
[1761362102206,3.15161212,193.77,193.72,5.88193984]
[1761362102506,2.56161212,193.77,193.72,5.88193984]
[1761362102709,2.56161212,193.77,193.73,0.72]
[1761362102935,66.93220215,193.78,193.73,0.72]
[1761362104718,2.56161212,193.77,193.73,0.72]
[1761362104928,2.56161212,193.76,193.73,0.72]
[1761362108633,26.03161212,193.78,193.74,10.87647521]
[1761362108830,26.03161212,193.78,193.74,11.59647521]
[1761362109714,2.56161212,193.76,193.71,10.87647521]
[1761362109915,36.33,193.77,193.72,0.72]
[1761362110330,2.56161212,193.74,193.72,0.72]
[1761362112737,2.56161212,193.76,193.72,5.88200938]
[1761362113137,38.30161212,193.77,193.73,0.72]
[1761362115525,28.63049823,193.78,193.73,5.88178598]
[1761362115526,31.1936215,193.78,193.73,5.88178598]
[1761362115834,25.44161212,193.78,193.73,5.88178598]
[1761362116031,25.44161212,193.78,193.74,0.72]
[1761362116736,2.56161212,193.81,193.75,13.43808733]
[1761362116939,35.96288654,193.82,193.76,2.56161212]
[1761362117244,30.80110056,193.82,193.76,3.28161212]
[1761362117443,2.56161212,193.81,193.77,5.88065951]
[1761362117746,2.56161212,193.81,193.78,0.72]
[1761362118045,28.23948844,193.82,193.78,0.72]
[1761362118253,0.2,193.82,193.78,0.72]
[1761362118636,23.08,193.82,193.78,0.72]
[1761362119230,23.08,193.82,193.79,5.16022498]
[1761362119645,23.08,193.82,193.8,0.72]
[1761362122928,25.64161212,193.82,193.8,0.72]
[1761362123928,23.08,193.82,193.78,16.03696648]
[1761362124143,23.08,193.82,193.78,16.71696648]
[1761362124536,23.08,193.82,193.79,0.68]
[1761362126452,23.08,193.82,193.8,10.87647521]
[1761362126641,3.15161212,193.81,193.77,0.68]
[1761362126844,2.56161212,193.79,193.77,0.68]
[1761362128740,2.56161212,193.78,193.77,16.7172328]
[1761362129151,2.56161212,193.79,193.77,16.7172328]
[1761362132660,2.56161212,193.78,193.77,16.7172328]
[1761362132960,2.56161212,193.79,193.77,16.7172328]
[1761362133145,2.56161212,193.78,193.75,5.84125271]
[1761362133348,2.56161212,193.77,193.76,0.68]
[1761362133761,2.56161212,193.78,193.76,0.68]
[1761362134156,25.44161212,193.79,193.76,0.68]
[1761362134347,2.56161212,193.79,193.76,0.68]
[1761362134966,1.63776806,193.78,193.76,0.68]
[1761362135142,1.63776806,193.78,193.76,10.87647521]
[1761362135340,1.63776806,193.78,193.76,5.84101624]
[1761362135560,1.63776806,193.78,193.77,0.68]
[1761362135767,1.63776806,193.79,193.77,0.68]
[1761362138254,28.03974716,193.81,193.77,0.68]
[1761362138454,1.63776806,193.8,193.77,0.68]
[1761362139360,1.63776806,193.8,193.78,10.87647521]
[1761362139753,24.51776806,193.81,193.79,0.68]
[1761362139959,22.88,193.81,193.79,0.68]
[1761362141861,24.51776806,193.81,193.79,0.68]
[1761362143473,22.88,193.81,193.79,0.68]
[1761362143774,24.51776806,193.81,193.79,0.68]
[1761362144970,22.88,193.81,193.79,0.68]
[1761362148575,22.88,193.81,193.78,16.71693931]
[1761362149390,22.88,193.81,193.79,0.68]
[1761362157990,22.88,193.81,193.78,16.69693931]
[1761362158375,22.88,193.81,193.78,11.53647521]
[1761362158579,22.88,193.81,193.79,0.66]
[1761362159883,22.88,193.81,193.76,5.82095521]
[1761362159884,29.67754205,193.81,193.76,5.82095521]
[1761362160088,2.22776806,193.8,193.76,5.82095521]
[1761362160583,1.63776806,193.79,193.76,5.82095521]
[1761362161285,1.63776806,193.78,193.76,10.87647521]
[1761362163000,1.63776806,193.78,193.72,14.54292027]
[1761362163196,2.22776806,193.78,193.75,10.87647521]
[1761362163400,1.63776806,193.77,193.75,10.87647521]
[1761362163698,24.51776806,193.76,193.71,0.66]
[1761362163901,1.63776806,193.73,193.69,10.87647521]
[1761362164191,1.63776806,193.72,193.69,11.53647521]
[1761362168804,1.63776806,193.71,193.69,10.87647521]
[1761362169392,1.63776806,193.71,193.69,11.53647521]
[1761362169990,1.63776806,193.72,193.69,11.53647521]
[1761362170191,1.63776806,193.72,193.69,10.87647521]
[1761362170407,28.04191275,193.73,193.7,0.66]
[1761362170694,1.63776806,193.72,193.7,0.66]
[1761362175890,1.63776806,193.72,193.67,5.16342231]
[1761362176098,1.63776806,193.72,193.69,0.66]
[1761362176688,22.88,193.73,193.69,0.66]
[1761362176900,22.88,193.73,193.69,2.29776806]
[1761362177304,22.88,193.73,193.7,0.66]
[1761362182305,22.88,193.73,193.7,5.82246676]
[1761362182699,24.51776806,193.73,193.71,0.67]
[1761362183811,2.22776806,193.72,193.68,0.67]
[1761362183983,1.63776806,193.7,193.67,0.67]
[1761362184713,1.63776806,193.7,193.67,11.54647521]
[1761362184920,1.63776806,193.69,193.67,0.67]
[1761362185080,5.16240658,193.71,193.64,11.54647521]
[1761362185081,1.63776806,193.68,193.64,11.54647521]
[1761362185410,22.88,193.68,193.65,10.87647521]
[1761362185592,0.59,193.7,193.65,11.54647521]
[1761362185593,1.63776806,193.7,193.65,11.54647521]
[1761362185914,1.63776806,193.7,193.66,0.67]
[1761362187301,1.63776806,193.69,193.63,1.63776806]
[1761362187686,1.63776806,193.68,193.62,12.91185388]
[1761362187899,1.63776806,193.68,193.63,1.63776806]
[1761362188790,1.63776806,193.69,193.63,1.63776806]
[1761362189406,1.63776806,193.69,193.65,5.16395558]
[1761362189797,2.35776806,193.69,193.66,0.67]
[1761362190000,1.63776806,193.68,193.65,5.83395558]
[1761362190308,1.63776806,193.68,193.66,0.67]
[1761362191898,1.63776806,193.68,193.63,17.67851661]
[1761362192095,1.63776806,193.68,193.64,0.67]
[1761362194700,1.63776806,193.68,193.64,5.83395864]
[1761362195296,1.63776806,193.68,193.65,0.67]
[1761362196617,7.52066111,193.69,193.65,0.67]
[1761362196804,8.44455462,193.69,193.65,0.67]
[1761362197110,2.56166157,193.68,193.65,0.67]
[1761362197509,2.56166157,193.66,193.63,10.87647521]
[1761362197916,2.56166157,193.66,193.64,0.67]
[1761362201406,3.28166157,193.67,193.64,5.83420306]
[1761362201612,22.88,193.72,193.64,5.83420306]
[1761362201613,2.56166157,193.68,193.64,5.83420306]
[1761362201798,22.88,193.68,193.65,0.67]
[1761362204921,23.6,193.68,193.65,0.67]
[1761362205714,22.88,193.68,193.65,5.8339343]
[1761362206220,22.88,193.68,193.66,0.67]
[1761362206809,104.76166157,193.73,193.67,2.56166157]
[1761362207014,14.23175543,193.75,193.69,2.56166157]
[1761362207207,42.99305011,193.75,193.7,5.16262261]
[1761362207514,42.99305011,193.75,193.7,5.83262261]
[1761362207701,0.72,193.74,193.7,5.83262261]
[1761362208816,22.88,193.73,193.7,5.83262261]
[1761362209023,22.88,193.73,193.71,0.67]
[1761362209604,5.1639343,193.76,193.71,5.83210475]
[1761362209920,3.24166157,193.78,193.73,2.56166157]
[1761362210097,22.88,193.76,193.73,2.56166157]
[1761362210300,22.88,193.76,193.73,3.27166157]
[1761362210501,0.68,193.77,193.73,0.71]
[1761362211834,0.68,193.77,193.73,5.87178936]
[1761362212211,150.82719192,193.79,193.73,5.87178936]
[1761362212212,38.28166157,193.79,193.74,11.58647521]
[1761362212419,38.96166157,193.79,193.75,0.71]
[1761362214010,3.24166157,193.79,193.75,0.71]
[1761362215628,30.60170867,193.8,193.75,5.8712745]
[1761362215838,26.12166157,193.8,193.75,5.8712745]
[1761362216016,3.24166157,193.81,193.76,5.87080069]
[1761362216211,3.24166157,193.81,193.77,0.71]
[1761362218919,61.36166157,193.82,193.78,5.16049127]
[1761362219232,35.92,193.82,193.78,5.16049127]
[1761362219434,35.92,193.82,193.79,0.66]
[1761362220134,0.2,193.82,193.79,5.82013941]
[1761362220514,0.2,193.82,193.8,0.66]
[1761362221519,0.2,193.82,193.8,5.81992252]
[1761362222026,0.2,193.82,193.81,0.66]
[1761362222232,0.2,193.82,193.8,5.81992252]
[1761362222426,0.2,193.82,193.77,15.46341109]
[1761362222427,0.2,193.82,193.78,10.87647521]
[1761362222637,0.72,193.81,193.78,10.87647521]
[1761362222826,3.48166157,193.82,193.79,0.66]
[1761362224144,0.92,193.82,193.79,5.82007439]
[1761362224553,3.48166157,193.82,193.79,5.82007439]
[1761362226645,0.92,193.82,193.79,5.82007439]
[1761362235552,0.2,193.82,193.79,5.16007439]
[1761362235731,0.92,193.82,193.79,5.82007439]
[1761362236547,0.2,193.82,193.79,5.16007439]
[1761362236847,0.2,193.82,193.8,5.81981654]
[1761362237049,0.92,193.82,193.8,5.15981654]
[1761362239355,0.2,193.82,193.8,5.15981654]
[1761362239550,0.2,193.82,193.8,5.81981654]
[1761362246852,0.2,193.82,193.81,3.24166157]
[1761362247163,0.2,193.82,193.81,14.11813678]
[1761362248450,0.2,193.82,193.81,54.97782926]
[1761362248650,0.2,193.83,193.82,33.75647521]
[1761362248959,0.2,193.84,193.83,13.43813678]
[1761362249253,0.2,193.84,193.83,14.11813678]
[1761362249655,0.2,193.84,193.83,49.81813678]
[1761362250550,0.2,193.84,193.83,54.97729686]
[1761362253769,0.2,193.84,193.83,55.49321286]
[1761362258670,0.2,193.84,193.83,54.56696702]
[1761362269976,0.2,193.84,193.83,54.70912859]
[1761362274075,0.2,193.85,193.83,54.70912859]
[1761362274272,0.2,193.85,193.84,13.23189094]
[1761362276089,0.2,193.85,193.84,18.39078487]
[1761362281601,0.2,193.85,193.84,18.53294644]
[1761362281901,0.2,193.88,193.86,12.51189094]
[1761362282076,0.2,193.88,193.86,48.70772711]
[1761362282277,0.2,193.88,193.86,49.37772711]
[1761362282693,0.2,193.88,193.86,51.58488442]
[1761362283996,0.2,193.88,193.86,56.74324612]
[1761362284514,0.2,193.88,193.86,55.10783039]
[1761362284714,0.2,193.88,193.86,56.74324612]
[1761362286329,0.2,193.88,193.86,54.67825038]
[1761362286492,0.2,193.88,193.86,52.23067308]
[1761362286693,0.9,193.87,193.86,53.33025264]
[1761362287114,0.2,193.87,193.86,53.33025264]
[1761362289810,0.9,193.87,193.86,17.67025264]
[1761362290010,0.9,193.87,193.86,51.69483691]
[1761362291811,0.9,193.87,193.86,53.33025264]
[1761362292505,1e-08,193.87,193.86,54.51608881]
[1761362292817,0.2,193.9,193.89,33.75647521]
[1761362292994,0.2,193.9,193.89,71.05189094]
[1761362293697,0.2,193.9,193.89,76.8794545]
[1761362303805,0.2,193.9,193.89,74.57403877]
[1761362304118,0.89,193.9,193.89,76.2094545]
[1761362307520,0.89,193.9,193.89,17.6694545]
[1761362307721,0.89,193.9,193.89,53.3294545]
[1761362313032,0.89,193.9,193.89,51.69403877]
[1761362313332,0.89,193.9,193.89,53.3294545]
[1761362320758,0.89,193.9,193.89,54.24875748]
[1761362321935,0.2,193.9,193.89,54.24875748]
[1761362322853,0.89,193.9,193.89,54.24875748]
[1761362323053,0.2,193.9,193.89,54.24875748]
[1761362323745,0.89,193.9,193.89,54.24875748]
[1761362324060,0.2,193.9,193.89,54.24875748]
[1761362325665,0.89,193.9,193.89,18.58875748]
[1761362325844,0.89,193.9,193.89,54.24875748]
[1761362326859,0.2,193.9,193.89,51.69403877]
[1761362327038,0.2,193.9,193.89,54.24875748]
[1761362328754,0.89,193.9,193.89,54.24875748]
[1761362330367,0.2,193.9,193.89,54.24875748]
[1761362336179,0.88,193.9,193.83,13.5973275]
[1761362336375,3.43471871,193.9,193.84,10.87647521]
[1761362336585,0.68,193.89,193.84,46.53647521]
[1761362336880,6.03698051,193.89,193.84,49.09119392]
[1761362337253,0.68,193.88,193.84,49.09119392]
[1761362337984,0.68,193.88,193.85,5.1586278]
[1761362339281,0.68,193.88,193.85,7.71334651]
[1761362339503,0.88,193.9,193.87,13.43119392]
[1761362339654,0.2,193.9,193.89,13.43119392]
[1761362340566,0.88,193.9,193.89,10.87647521]
[1761362341190,0.2,193.9,193.89,13.43119392]
[1761362341386,0.2,193.9,193.89,18.58875748]
[1761362341695,0.2,193.9,193.89,19.25875748]
[1761362342256,0.88,193.9,193.89,16.03403877]
[1761362342457,0.2,193.9,193.89,18.58875748]
[1761362346570,0.2,193.9,193.89,19.25875748]
[1761362346771,0.2,193.9,193.89,18.58875748]
[1761362348693,0.2,193.9,193.89,19.25875748]
[1761362349991,1e-08,193.92,193.91,36.31119392]
[1761362350289,1e-08,193.92,193.91,73.15689708]
[1761362350874,1e-08,193.92,193.91,78.31392869]
[1761362354301,1e-08,193.92,193.91,78.45609026]
[1761362361699,1e-08,193.93,193.92,11.68863678]
[1761362361902,0.2,193.96,193.92,14.24335549]
[1761362362104,0.2,193.96,193.94,10.87647521]
[1761362362279,0.2,193.96,193.95,46.51647521]
[1761362362479,0.2,193.96,193.95,49.07119392]
[1761362362700,0.2,193.96,193.95,49.74119392]
[1761362363089,0.2,193.96,193.95,54.89716195]
[1761362366525,0.88,193.96,193.95,54.22716195]
[1761362366685,0.2,193.96,193.95,54.22716195]
[1761362367017,0.2,193.96,193.95,54.89716195]
[1761362367518,0.2,193.96,193.95,54.22716195]
[1761362369404,0.2,193.96,193.95,54.89716195]
[1761362374809,0.2,193.96,193.95,54.22716195]
[1761362377809,0.88,193.96,193.95,54.22716195]
[1761362378697,0.2,193.96,193.95,54.22716195]
[1761362380711,0.2,193.96,193.95,53.30614855]
[1761362381422,0.88,193.96,193.95,17.66614855]
[1761362381728,0.88,193.96,193.95,53.30614855]
[1761362392638,0.2,193.96,193.95,53.98614855]
[1761362394233,0.2,193.96,193.95,53.30614855]